fUSD/lending_fUSD_20240801
["ID","MTS","AMOUNT","RATE_DAILY","PERIOD"]
[333796396,1722517832112,-287.37812571,0.00010278,2]
[333796397,1722517832122,-834.29,0.00010278,2]
[333796398,1722517832131,-834.29,0.00010278,2]
[333796399,1722517832142,-420.49,0.00010282,2]
[333796400,1722517832151,-419.76,0.00010282,2]
[333796401,1722517832161,-834.29,0.000103,2]
[333796402,1722517832171,-420.49,0.000103,2]
[333796403,1722517832181,-871.9,0.00010465,2]
[333796404,1722517832191,-5000.0,0.000105,2]
[333796406,1722517832200,-1619.78644028,0.000105,2]
[333796408,1722517832209,-500.0,0.00010644,2]
[333796410,1722517832219,-425.44,0.00010904,2]
[333796411,1722517832229,-150.0,0.00010904,2]
[333796412,1722517832238,-282.586,0.00010912,2]
[333796413,1722517832247,-679.068,0.00010912,2]
[333796414,1722517832257,-247.479,0.00010912,2]
[333796415,1722517832266,-202.521,0.00010912,2]
[333796416,1722517832275,-900.0,0.00010918,2]
[333796417,1722517832285,-800.0,0.00010918,2]
[333796418,1722517832294,-250.0,0.00010959,2]
[333796419,1722517832303,-458.46,0.00010959,2]
[333796420,1722517832313,-520.13,0.00010959,2]
[333796421,1722517832322,-433.44,0.00010959,2]
[333796422,1722517832332,-361.2,0.00010959,2]
[333796423,1722517832341,-301.0,0.00010959,2]
[333796424,1722517832350,-250.84,0.00010959,2]
[333796425,1722517832360,-420.0,0.00010999,2]
[333796426,1722517832370,-929.85307473,0.00011,2]
[333796427,1722517832379,-1894.4,0.00011,2]
[333796428,1722517832392,-2000.0,0.00011,2]
[333796429,1722517832401,-250.0,0.00011,2]
[333796430,1722517832411,-8500.0,0.00011,2]
[333796431,1722517832420,-150.0,0.00011,2]
[333796432,1722517832429,-28166.83032685,0.00011005,2]
[333796433,1722517832441,-432.92,0.00011005,2]
[333796434,1722517832452,-3164.75000067,0.00011005,2]
[333796435,1722517832464,-2767.19777248,0.00011005,2]
[333796436,1722517832473,-617.9493,0.00011005,2]
[333796437,1722517832482,-8389.74204509,0.00011005,2]
[333796438,1722517832493,-10583.75706558,0.00011005,2]
[333796439,1722517832504,-385.95227724,0.00011005,2]
[333796440,1722517832516,-3392.08681209,0.00011005,2]
[333796441,1722517832525,-500.0,0.00011086,2]
[333796442,1722517832535,-7762.3759,0.00011086,2]
[333796443,1722517832545,-2540.4008,0.00011086,2]
[333796444,1722517832554,-2429.0462,0.00011086,2]
[333796445,1722517832565,-13740.7277,0.00011086,2]
[333796446,1722517832576,-470.2455,0.00011086,2]
[333796447,1722517832586,-25298.4632004,0.00011105,2]
[333796448,1722517832596,-22636.62649334,0.00011105,2]
[333796449,1722517832606,-20200.00000006,0.00011105,2]
[333796450,1722517832617,-29688.98690672,0.00011105,2]
[333796451,1722517832626,-7000.0,0.00011105,2]
[333796452,1722517832639,-3975.93139247,0.00011105,2]
[333796453,1722517832649,-2489.35935245,0.00011105,2]
[333796454,1722517832659,-10361.91687652,0.00011105,2]
[333796455,1722517832669,-6527.67516204,0.00011105,2]
[333796456,1722517832678,-2256.58907167,0.00011105,2]
[333796457,1722517832687,-2727.16525437,0.00011105,2]
[333796458,1722517832697,-2445.86949612,0.00011105,2]
[333796459,1722517832706,-2184.15917998,0.00011105,2]
[333796460,1722517832715,-8584.4102063,0.00011105,2]
[333796461,1722517832725,-1387.10805493,0.00011105,2]
[333796462,1722517832734,-10214.55698406,0.00011105,2]
[333796463,1722517832744,-7269.27662273,0.00011105,2]
[333796464,1722517832753,-1725.0,0.00011105,2]
[333796465,1722517832762,-2272.2029007,0.00011105,2]
[333796466,1722517832772,-572.63862719,0.00011105,2]
[333796467,1722517832781,-1151.90334733,0.00011105,2]
[333796468,1722517832790,-8236.31393784,0.00011105,2]
[333796469,1722517832800,-3113.17448366,0.00011105,2]
[333796470,1722517832809,-1246.07199876,0.00011105,2]
[333796471,1722517832819,-194.94033008,0.00011105,2]
[333796472,1722517832829,-5637.78200228,0.00011105,2]
[333796473,1722517832838,-1073.58046777,0.00011105,2]
[333796474,1722517832847,-195.08823651,0.00011105,2]
[333796475,1722517832857,-15956.5,0.00011159,2]
[333796476,1722517832867,-35692.14335282,0.00011185,2]
[333796477,1722517832877,-482.34902135,0.00011186,2]
[333796478,1722517832887,-202.9826193,0.00011186,2]
[333796479,1722517832897,-670.54602584,0.00011186,2]
[333796480,1722517832906,-1892.0,0.0001119,2]
[333796481,1722517832916,-150.0,0.0001119,2]
[333796482,1722517832926,-518.78730334,0.00011206,2]
[333796483,1722517832936,-1020.60712613,0.00011206,2]
[333796484,1722517832946,-834.29,0.00011237,2]
[333796485,1722517832955,-1668.16,0.00011237,2]
[333796486,1722517832965,-834.29,0.00011237,2]
[333796487,1722517832974,-834.29,0.00011237,2]
[333796488,1722517832984,-783.74,0.00011241,2]
[333796489,1722517832994,-200.0,0.0001132,2]
[333796490,1722517833004,-1253.33884969,0.00011322,2]
[333796491,1722517833014,-1317.30265647,0.00011322,2]
[333796492,1722517833024,-914.50545662,0.00011322,2]
[333796493,1722517833034,-705.39907671,0.00011322,2]
[333796494,1722517833046,-685.40282976,0.00011324,2]
[333796495,1722517833057,-729.28704669,0.00011324,2]
[333796496,1722517833067,-179.80836061,0.00011324,2]
[333796497,1722517833077,-400.0,0.00011324,2]
[333796498,1722517833088,-200.0,0.0001135,2]
[333796499,1722517833098,-200.72,0.00011351,2]
[333796500,1722517833108,-168.65393572,0.00011384,2]
[333796501,1722517833119,-207.5535028,0.00011384,2]
[333796502,1722517833129,-500.0,0.00011466,2]
[333796503,1722517833141,-500.0,0.00011466,2]
[333796504,1722517833151,-1000.0,0.00011475,2]
[333796505,1722517833161,-200.19883277,0.00011525,2]
[333796506,1722517833171,-169.34352278,0.00011525,2]
[333796507,1722517833181,-200.19883277,0.00011525,2]
[333796508,1722517833191,-278.16880914,0.00011525,2]
[333796509,1722517833201,-155.0,0.00011525,2]
[333796510,1722517833210,-453.1769076,0.00011525,2]
[333796511,1722517833220,-315.2321836,0.00011525,2]
[333796512,1722517833231,-155.0,0.00011525,2]
[333796513,1722517833241,-229.77775296,0.00011525,2]
[333796514,1722517833251,-387.79038477,0.00011576,2]
[333796515,1722517833261,-419.90121071,0.00011584,2]
[333796516,1722517833271,-349.29,0.00011589,2]
[333796517,1722517833282,-159.88,0.00011593,2]
[333796518,1722517833292,-900.0,0.0001174,2]
[333796519,1722517833303,-800.0,0.0001174,2]
[333796520,1722517833314,-464.3666052,0.00011755,2]
[333796521,1722517833324,-400.0,0.000118,4]
[333796522,1722517833336,-155.0,0.0001185,2]
[333796523,1722517833347,-155.0,0.0001185,2]
[333796524,1722517833357,-155.0,0.0001185,2]
[333796525,1722517833366,-390.0360721,0.0001185,2]
[333796526,1722517833375,-155.0,0.0001185,2]
[333796527,1722517833386,-466.42309066,0.0001185,2]
[333796528,1722517833396,-155.0,0.0001185,2]
[333796529,1722517833407,-500.0,0.00011854,2]
[333796530,1722517833419,-200.0,0.00011854,2]
[333796531,1722517833430,-1000.0,0.00011858,2]
[333796532,1722517833440,-3000.0,0.0001188,2]
[333796533,1722517833450,-210.29402487,0.00011896,2]
[333796534,1722517833460,-689.12098449,0.00011896,2]
[333796535,1722517833471,-298.04833193,0.00011896,2]
[333796536,1722517833482,-1500.0,0.00011896,2]
[333796537,1722517833491,-362.0149577,0.00011896,2]
[333796538,1722517833501,-2000.0,0.00011899,2]
[333796539,1722517833511,-800.0,0.000119,4]
[333796540,1722517833521,-4534.84459588,0.000119,2]
[333796541,1722517833531,-185.0,0.0001193,2]
[333796542,1722517833541,-666.64823966,0.00011959,2]
[333796543,1722517833551,-159.8,0.0001199,2]
[333796544,1722517833561,-1901.72668957,0.00011997,2]
[333796545,1722517833578,-824.51016874,0.00011999,2]
[333796546,1722517833588,-6653.79319758,0.00012,2]
[333796547,1722517833599,-4997.52,0.00012,2]
[333796548,1722517833611,-247239.45347321,0.00012,2]
[333796549,1722517833621,-1193.062,0.00012,2]
[333796550,1722517833631,-2000.0,0.00012,2]
[333796551,1722517833647,-370.0,0.00012,2]
[333796552,1722517833658,-18168.62249054,0.00012,2]
[333796553,1722517833669,-3111.0,0.00012,2]
[333796554,1722517833679,-2500.0,0.00012,2]
[333796555,1722517833690,-2500.0,0.00012,2]
[333796556,1722517833700,-900.0,0.00012,2]
[333796557,1722517833711,-155.09859359,0.00012,2]
[333796558,1722517833720,-200.0,0.00012,2]
[333796559,1722517833730,-2000.0,0.00012,4]
[333796560,1722517833740,-595.68,0.00012033,2]
[333796561,1722517833750,-464.36660518,0.00012041,2]
[333796562,1722517833760,-44367.94,0.00012055,2]
[333796563,1722517833771,-240.0,0.00012099,2]
[333796564,1722517833780,-200.0,0.0001212,2]
[333796565,1722517833790,-2000.0,0.00012173,2]
[333796566,1722517833800,-200.0,0.00012241,2]
[333796567,1722517833810,-500.0,0.00012288,2]
[333796568,1722517833820,-1200.0,0.000123,4]
[333796569,1722517833830,-155.05644409,0.00012325,2]
[333796570,1722517833841,-464.36660518,0.00012328,2]
[333796571,1722517833851,-155.0,0.0001236,2]
[333796572,1722517833861,-165.76127034,0.0001236,2]
[333796573,1722517833871,-155.0,0.0001236,2]
[333796574,1722517833881,-155.0,0.0001236,2]
[333796575,1722517833891,-155.0,0.0001236,2]
[333796576,1722517833902,-155.0,0.0001236,2]
[333796577,1722517833911,-306.04201098,0.0001236,2]
[333796578,1722517833921,-155.0,0.0001236,2]
[333796579,1722517833931,-155.0,0.0001236,2]
[333796580,1722517833940,-404.69820532,0.0001236,2]
[333796581,1722517833950,-200.0,0.00012364,2]
[333796582,1722517833959,-183.22345433,0.00012391,2]
[333796583,1722517833968,-183.22345433,0.00012391,2]
[333796584,1722517833978,-155.0,0.00012391,2]
[333796585,1722517833988,-257.65127436,0.00012391,2]
[333796586,1722517833998,-389.03705166,0.00012391,2]
[333796587,1722517834010,-155.0,0.00012397,2]
[333796588,1722517834021,-155.0,0.00012397,2]
[333796589,1722517834031,-155.0,0.00012397,2]
[333796590,1722517834040,-315.18749734,0.00012397,2]
[333796591,1722517834050,-540.27889785,0.00012397,2]
[333796592,1722517834060,-201.88026028,0.00012397,2]
[333796593,1722517834070,-1205.38483666,0.00012397,2]
[333796594,1722517834080,-155.0,0.00012397,2]
[333796595,1722517834091,-266.92800249,0.00012397,2]
[333796596,1722517834100,-213.41904951,0.00012397,2]
[333796597,1722517834110,-1600.0,0.000124,4]
[333796598,1722517834120,-2000.0,0.00012447,2]
[333796599,1722517834130,-595.68,0.00012458,2]
[333796600,1722517834141,-1242.2623,0.00012459,2]
[333796601,1722517834151,-500.0,0.00012459,2]
[333796602,1722517834160,-500.0,0.00012459,2]
[333796603,1722517834170,-328.47104829,0.00012459,2]
[333796604,1722517834180,-51439.45416721,0.0001246,2]
[333796611,1722517837644,-159.13045808,0.00010986,2]
[333796612,1722517837656,-2014.53214111,0.0001116,2]
[333796613,1722517837667,-168.65393572,0.00011324,2]
[333796614,1722517837677,-173.15745184,0.00012397,2]
[333796628,1722517838300,-117.77113546,0.00012397,2]
[333796631,1722517838310,-500.97818457,0.0001246,2]
[333796637,1722517838321,-1231.67096071,0.0001246,2]
[333796641,1722517838333,-370.20485632,0.0001246,2]
[333796643,1722517838355,-642185.30243935,0.0001246,2]
[333796644,1722517838365,-400.85725149,0.0001246,2]
[333796645,1722517838375,-317.35449888,0.0001246,2]
[333796646,1722517838385,-7540.0,0.00012463,7]
[333796647,1722517838400,-289.56548484,0.000125,2]
[333796648,1722517838415,-2100.0,0.000125,4]
[333796649,1722517838424,-11098.19330758,0.0001251,2]
[333796650,1722517838434,-158.10285028,0.0001254,2]
[333796651,1722517838443,-155.0,0.0001254,2]
[333796652,1722517838453,-843.84905184,0.0001254,2]
[333796653,1722517838462,-843.84905184,0.0001254,2]
[333796654,1722517838472,-900.0,0.00012562,2]
[333796655,1722517838482,-800.0,0.00012562,2]
[333796656,1722517838491,-192.30861844,0.00012581,2]
[333796657,1722517838501,-1014.20694992,0.00012581,2]
[333796658,1722517838511,-155.0,0.00012581,2]
[333796660,1722517838520,-5002.3410963,0.00012592,2]
[333796661,1722517838530,-5000.0,0.00012592,2]
[333796662,1722517838539,-5000.0,0.00012592,2]
[333796663,1722517838549,-5000.0,0.00012592,2]
[333796664,1722517838559,-400.0,0.000126,4]
[333796665,1722517838571,-155.0,0.00012613,2]
[333796666,1722517838580,-464.36660518,0.00012614,2]
[333796667,1722517838589,-2134.83239816,0.00012666,2]
[333796668,1722517838599,-593.04445745,0.00012681,2]
[333796669,1722517838608,-997.35950598,0.00012681,2]
[333796670,1722517838619,-400.0,0.0001269,2]
[333796671,1722517838628,-400.0,0.000127,4]
[333796672,1722517838639,-871.9,0.00012711,2]
[333796673,1722517838651,-400.0,0.0001272,2]
[333796674,1722517838661,-2000.0,0.00012721,2]
[333796675,1722517838670,-155.0,0.00012749,2]
[333796676,1722517838680,-871.6447885,0.00012749,2]
[333796677,1722517838690,-4790.36180023,0.00012749,2]
[333796678,1722517838700,-871.6447885,0.00012749,2]
[333796679,1722517838718,-1000.0,0.0001275,2]
[333796680,1722517838736,-200.72,0.0001277,2]
[333796681,1722517838755,-154.8563718,0.000128,2]
[333796682,1722517838773,-400.0,0.000128,4]
[333796683,1722517838794,-701.27711853,0.00012818,2]
[333796684,1722517838814,-701.27711853,0.00012818,2]
[333796685,1722517838834,-508.97300913,0.00012818,2]
[333796686,1722517838850,-930.32433831,0.00012818,2]
[333796687,1722517838860,-698.28064287,0.00012826,2]
[333796688,1722517838873,-248.61042332,0.00012826,2]
[333796689,1722517838883,-698.28064287,0.00012826,2]
[333796690,1722517838898,-155.0,0.00012826,2]
[333796691,1722517838907,-20300.76,0.00012844,2]
[333796692,1722517839324,-155.0,0.00012855,2]
[333796693,1722517839334,-150.0,0.0001287,3]
[333796694,1722517839343,-155.0,0.00012883,2]
[333796695,1722517839353,-155.0,0.00012883,2]
[333796696,1722517839362,-164.9628186,0.00012883,2]
[333796697,1722517839371,-394.87520171,0.00012883,2]
[333796698,1722517839380,-194.79577607,0.00012883,2]
[333796699,1722517839390,-595.68,0.00012884,2]
[333796700,1722517839399,-2000.0,0.000129,2]
[333796701,1722517839409,-10000.0,0.000129,2]
[333796702,1722517839418,-400.0,0.000129,4]
[333796703,1722517839428,-1000.0,0.000129,2]
[333796705,1722517839437,-464.36660518,0.000129,2]
[333796707,1722517839447,-183.64362293,0.000129,2]
[333796708,1722517839457,-13746.75811178,0.000129,2]
[333796710,1722517839466,-155.0,0.00012924,2]
[333796711,1722517839475,-247.37395801,0.00012924,2]
[333796713,1722517839486,-183.37476201,0.00012928,2]
[333796715,1722517839495,-155.0,0.00012928,2]
[333796716,1722517839505,-396.47197177,0.00012928,2]
[333796717,1722517839514,-155.0,0.00012928,2]
[333796718,1722517839524,-200.0,0.0001297,2]
[333796719,1722517839534,-159.8,0.0001299,2]
[333796720,1722517839544,-159.8,0.0001299,2]
[333796721,1722517839553,-155.0,0.00012995,2]
[333796722,1722517839565,-155.0,0.00012995,2]
[333796723,1722517839580,-200.0,0.00012995,2]
[333796724,1722517839590,-155.0,0.00012995,2]
[333796725,1722517839600,-155.0,0.00012995,2]
[333796726,1722517839611,-258.77275636,0.00012995,2]
[333796728,1722517839621,-155.0,0.00012995,2]
[333796730,1722517839631,-2000.0,0.00012995,2]
[333796732,1722517839650,-15213.81351656,0.00012997,2]
[333796734,1722517839660,-2000.0,0.00012999,2]
[333796736,1722517839670,-2009.8825,0.00012999,2]
[333796737,1722517839681,-1539643.97393012,0.00013,2]
[333796738,1722517839690,-15000.0,0.00013,2]
[333796739,1722517839700,-1000.0,0.00013,2]
[333796740,1722517839709,-158.08830523,0.00013,2]
[333796741,1722517839719,-161.85188743,0.00013,2]
[333796742,1722517839728,-2000.0,0.00013,2]
[333796743,1722517839738,-840.28592023,0.00013,3]
[333796744,1722517839748,-174.0,0.00013,2]
[333796745,1722517839757,-5000.0,0.00013,7]
[333796746,1722517839767,-17947.61584292,0.00013,2]
[333796747,1722517839776,-140380.20405732,0.00013,2]
[333796748,1722517839790,-32051.2191998,0.00013,2]
[333796749,1722517839801,-3440.11945936,0.00013,2]
[333796750,1722517839812,-2859.88054064,0.00013,2]
[333796751,1722517839823,-20270.69836658,0.00013,2]
[333796752,1722517839961,-209.03,0.00010959,2]
[333796753,1722517839971,-128.135,0.00011943,2]
[333796754,1722517839985,-30.99545808,0.00011943,2]
[333796755,1722517839995,-155.0,0.00012397,2]
[333796756,1722517840005,-412.25508437,0.00012459,2]
[333796757,1722517840014,-570.41403695,0.0001269,2]
[333796758,1722517840023,-310.40160147,0.00013,2]
[333796759,1722517840034,-26030.45916582,0.00013,2]
[333796760,1722517840045,-774.46656194,0.00013,2]
[333796761,1722517840056,-3705.05,0.00013,2]
[333796763,1722517840095,-8999.62620331,0.00013,2]
[333796764,1722517840106,-959.41436398,0.00013,2]
[333796765,1722517840129,-1014.20694992,0.0001254,2]
[333796766,1722517840142,-859.09305008,0.00013,2]
[333796767,1722517840157,-334.25492828,0.00013,2]
[333796768,1722517840168,-5604.22868825,0.00013,2]
[333796769,1722517840182,-722.19529931,0.00013,2]
[333796770,1722517840193,-4300.15412192,0.00013,2]
[333796771,1722517840206,-1568.29552831,0.00013,2]
[333796773,1722517840217,-738.39330462,0.00013,2]
[333796774,1722517840228,-7144.31999998,0.00013,2]
[333796776,1722517840238,-602.23901533,0.00013,2]
[333796783,1722517842836,-518.78730334,0.00011186,2]
[333796784,1722517842846,-1075.67804653,0.00012,2]
[333796785,1722517842899,-377.11693109,0.00012,2]
[333797027,1722517848299,-666.64823966,0.00011896,2]
[333797028,1722517848309,-615.20502238,0.00012,2]
[333797029,1722517848318,-183.22345433,0.0001236,2]
[333797030,1722517848327,-155.0,0.0001236,2]
[333797031,1722517848336,-155.0,0.00012391,2]
[333797032,1722517848345,-266.92800249,0.00012397,2]
[333797033,1722517848355,-192.30861844,0.0001254,2]
[333797034,1722517848365,-155.0,0.00012696,2]
[333797035,1722517848375,-155.0,0.00012826,2]
[333797036,1722517848384,-159.13045808,0.000129,2]
[333797037,1722517848395,-206.12754218,0.00012999,2]
[333797038,1722517848407,-2947.23903557,0.00013,2]
[333797039,1722517848422,-859.71593629,0.00013,2]
[333797040,1722517861712,-13776820.71320964,0.00013,2]
[333797041,1722517864079,-400153.69988063,0.00013,2]
[333797042,1722517868766,500.0,0.00027,120]
[333797043,1722517869268,500.0,0.00027,120]
[333797044,1722517869760,500.0,0.00027,120]
[333797045,1722517870247,500.0,0.00027,120]
[333797046,1722517871618,500.0,0.00027,120]
[333797047,1722517872073,500.0,0.00027,120]
[333797048,1722517872516,500.0,0.00027,120]
[333797049,1722517872962,500.0,0.00027,120]
[333797050,1722517873427,500.0,0.00027,120]
[333797051,1722517873875,500.0,0.00027,120]
[333797052,1722517875234,500.0,0.00027,120]
[333797053,1722517875267,500.0,0.00027,120]
[333797054,1722517875309,500.0,0.00027,120]
[333797055,1722517875338,500.0,0.00027,120]
[333797056,1722517875396,500.0,0.00027,120]
[333797057,1722517875424,500.0,0.00027,120]
[333797058,1722517875729,500.0,0.00027,120]
[333797059,1722517875800,500.0,0.00027,120]
[333797060,1722517876197,500.0,0.00027,120]
[333797061,1722517876271,500.0,0.00027,120]
[333797062,1722517876686,642.91673968,0.00027,120]
[333797063,1722517876716,527.05776712,7.631e-05,7]
[333797064,1722517876739,10000.0,7.631e-05,7]
[333797065,1722517877106,10000.0,7.631e-05,7]
[333797066,1722517877130,10000.0,7.631e-05,7]
[333797067,1722517877154,10000.0,7.631e-05,7]
[333797068,1722517877178,10000.0,7.631e-05,7]
[333797069,1722517877201,10000.0,7.631e-05,7]
[333797070,1722517877225,10000.0,7.631e-05,7]
[333797071,1722517877250,13982.0,7.631e-05,7]
[333797072,1722517877273,10000.0,7.631e-05,7]
[333797073,1722517877294,3339.09570928,7.631e-05,7]
[333797074,1722517877330,500.0,0.00027,120]
[333797075,1722517877378,500.0,0.00027,120]
[333797076,1722517877649,500.0,0.00027,120]
[333797077,1722517878135,500.0,0.00027,120]
[333797078,1722517878600,500.0,0.00027,120]
[333797079,1722517879280,500.0,0.00027,120]
[333797080,1722517879731,500.0,0.00027,120]
[333797081,1722517880213,500.0,0.00027,120]
[333797082,1722517881753,500.0,0.00027,120]
[333797083,1722517882246,500.0,0.00027,120]
[333797084,1722517882670,500.0,0.00027,120]
[333797085,1722517883140,500.0,0.00027,120]
[333797086,1722517883659,500.0,0.00027,120]
[333797087,1722517885113,500.0,0.00027,120]
[333797088,1722517886854,500.0,0.00027,120]
[333797089,1722517886920,500.0,0.00027,120]
[333797090,1722517886982,500.0,0.00027,120]
[333797091,1722517887083,500.0,0.00027,120]
[333797092,1722517887478,500.0,0.00027,120]
[333797093,1722517887934,500.0,0.00027,120]
[333797094,1722517888365,500.0,0.00027,120]
[333797095,1722517888795,500.0,0.00027,120]
[333797096,1722517889262,500.0,0.00027,120]
[333797097,1722517889892,500.0,0.00027,120]
[333797098,1722517890336,500.0,0.00027,120]
[333797099,1722517890808,500.0,0.00027,120]
[333797100,1722517891235,500.0,0.00027,120]
[333797101,1722517891692,500.0,0.00027,120]
[333797102,1722517892130,500.0,0.00027,120]
[333797103,1722517892600,500.0,0.00027,120]
[333797104,1722517893024,500.0,0.00027,120]
[333797105,1722517893454,500.0,0.00027,120]
[333797106,1722517893920,500.0,0.00027,120]
[333797107,1722517894384,500.0,0.00027,120]
[333797108,1722517899023,500.0,0.00027,120]
[333797109,1722517900228,500.0,0.00027,120]
[333797110,1722517900784,500.0,0.00027,120]
[333797111,1722517901236,500.0,0.00027,120]
[333797112,1722517901698,578.78380579,0.00027,120]
[333797113,1722517950604,6660.90429072,7.631e-05,7]
[333797114,1722517950628,10000.0,7.631e-05,7]
[333797115,1722517950648,10000.0,7.631e-05,7]
[333797116,1722517950670,10000.0,7.631e-05,7]
[333797117,1722517950691,8339.09570928,7.631e-05,7]
[333797118,1722517992792,500.0,0.00025389,120]
[333797119,1722517993442,507.460879,0.00025889,120]
[333797120,1722517996069,1000.0,0.00024932,120]
[333797121,1722518009906,155.0,0.00026967,120]
[333797122,1722518039888,155.0,0.00026967,120]
[333797123,1722518097887,383.39,0.00025,60]
[333797125,1722518596862,-802.81,8.282e-05,2]
[333797126,1722518596883,-500.0,9.822e-05,2]
[333797127,1722518596904,-196.56350179,9.822e-05,2]
[333797128,1722518596926,-300.0,9.999e-05,2]
[333797129,1722518596948,-7269.27662273,0.0001,2]
[333797130,1722518596968,-155.0,0.0001,2]
[333797131,1722518596989,-719.24573666,0.0001,2]
[333797132,1722518597010,-3975.93139247,0.0001,2]
[333797133,1722518597030,-317.35449888,0.0001,2]
[333797134,1722518597050,-24863.81824747,0.0001,2]
[333797140,1722518741713,1770.85789063,0.00027,120]
[333797142,1722518755755,1660.90429072,6.94e-05,2]
[333797143,1722518755776,2657.25041023,6.94e-05,2]
[333797145,1722518783924,227.57356757,6.94e-05,2]
[333797146,1722518788180,692.66620014,6.94e-05,2]
[333797147,1722518796739,1284.09297727,6.94e-05,2]
[333797156,1722518834908,253.0,0.00027,120]
[333797160,1722518876741,1284.09297727,6.94e-05,2]
[333797174,1722518924264,157.10598369,0.0002509,120]
[333797179,1722518983291,5000.0,0.00027,120]
[333797184,1722518997305,3000.0,0.00027,120]
[333797194,1722519031884,-540.396828,8.229e-05,2]
[333797195,1722519031896,-222.263172,8.229e-05,2]
[333797196,1722519031905,-176.94074286,9.999e-05,2]
[333797197,1722519031921,-123.05925714,9.999e-05,2]
[333797198,1722519031933,-150.0,9.999e-05,2]
[333797199,1722519031943,-434.64495293,0.0001,2]
[333797200,1722519031957,-388.92057638,0.0001,2]
[333797201,1722519031984,-6611.07942362,0.0001,2]
[333797202,1722519031995,-362.0149577,0.0001,2]
[333797203,1722519032004,-155.0,0.0001,2]
[333797204,1722519032013,-448.37819227,0.0001,2]
[333797205,1722519032025,-548.98131371,0.0001,2]
[333797206,1722519032036,-412.76630026,0.0001,2]
[333797207,1722519032045,-170.34699346,0.0001,2]
[333797208,1722519032055,-449.14284782,0.0001,2]
[333797209,1722519032066,-1049.72746869,0.0001,2]
[333797210,1722519032076,-340.68338463,0.0001,4]
[333797211,1722519032086,-299.71268725,0.0001,2]
[333797212,1722519032095,-155.0,0.0001,2]
[333797213,1722519032105,-150.55,0.00010111,2]
[333797214,1722519032114,-1142.24296694,0.00010137,2]
[333797215,1722519032127,-20534.18703306,0.00010137,2]
[333797216,1722519032136,-290.9,0.00010177,2]
[333797217,1722519032146,-179.92,0.00010353,2]
[333797218,1722519032156,-762.66,0.00010493,2]
[333797219,1722519032166,-1000.0,0.00010532,2]
[333797220,1722519032177,-700.0,0.000107,3]
[333797221,1722519032187,-4395.11384839,0.0001079,2]
[333797222,1722519032196,-1400.0,0.000108,3]
[333797223,1722519032206,-2100.0,0.000109,3]
[333797224,1722519032215,-648.94187411,0.000109,2]
[333797226,1722519032224,-1919.95925056,0.00010904,2]
[333797228,1722519032233,-2756.7848,0.00010905,2]
[333797230,1722519032243,-700.0,0.00010918,2]
[333797232,1722519032252,-700.0,0.00010918,2]
[333797233,1722519032261,-500.0,0.00010918,2]
[333797234,1722519032271,-500.0,0.00010918,2]
[333797235,1722519032280,-2212.1,0.00010959,2]
[333797236,1722519032290,-250.0,0.00010959,2]
[333797237,1722519032299,-150.0,0.00010959,2]
[333797238,1722519032308,-174.19,0.00010959,2]
[333797240,1722519032317,-870.99,0.00010959,2]
[333797242,1722519032327,-162.72388077,0.00010959,5]
[333797244,1722519032336,-20633.66692271,0.00010989,2]
[333797247,1722519032348,-484.32,0.00010989,2]